bitfinex/quotes_ETHUSD_20240922
["timestamp","ask_amount","ask_price","bid_price","bid_amount"]
[1727040667433,1.62856335,2579.6,2579.2,7.4671156]
[1727040669574,1.62856335,2579.6,2579.3,7.75391]
[1727040669871,1.62856335,2579.7,2579.3,3.87692]
[1727040670038,1.62856335,2579.7,2579.3,5.01132956]
[1727040672054,1.62856335,2579.6,2579.3,5.01132956]
[1727040672667,0.20301467,2579.5,2579.3,5.01132956]
[1727040675154,0.20301467,2579.5,2579.4,6.34567]
[1727040675356,1.62856335,2579.7,2579.6,3.87655]
[1727040675579,1.83149472,2579.7,2579.6,3.87655]
[1727040675790,0.20293137,2579.7,2579.6,5.0170985]
[1727040676200,1.62856335,2579.8,2579.6,1.1405485]
[1727040676387,1.83149472,2579.7,2579.6,5.0170885]
[1727040676707,0.20293137,2579.7,2579.6,5.0170885]
[1727040677064,1.62856335,2579.8,2579.6,5.0170885]
[1727040677375,1.83149472,2579.7,2579.6,5.0170885]
[1727040677592,0.20293137,2579.7,2579.6,5.0170885]
[1727040678377,1.62856335,2579.8,2579.6,5.0170885]
[1727040678707,0.20293137,2579.7,2579.6,5.0170885]
[1727040678903,1.62856335,2579.8,2579.6,5.0170885]
[1727040679314,0.20293137,2579.7,2579.6,5.0170885]
[1727040680099,1.62856335,2579.8,2579.6,5.0170885]
[1727040680313,0.20293137,2579.7,2579.6,5.0170885]
[1727040681137,1.62856335,2579.8,2579.6,5.0170885]
[1727040684928,1.62856335,2579.8,2579.6,3.87654]
[1727040687411,0.20293137,2579.7,2579.6,3.87654]
[1727040687906,1.62856335,2579.8,2579.6,3.87654]
[1727040688238,0.20293137,2579.7,2579.6,3.87654]
[1727040688486,1.62856335,2579.8,2579.6,3.87654]
[1727040688649,0.20293137,2579.7,2579.6,3.87654]
[1727040688849,1.62856335,2579.8,2579.6,3.87654]
[1727040689051,0.20293137,2579.7,2579.6,3.87654]
[1727040689348,1.62856335,2579.8,2579.6,3.87654]
[1727040689553,0.20293137,2579.7,2579.6,3.87654]
[1727040689753,1.62856335,2579.8,2579.6,3.87654]
[1727040689974,0.20302511,2579.7,2579.6,3.87654]
[1727040690181,1.62856335,2579.8,2579.6,3.87654]
[1727040690490,0.20302511,2579.7,2579.6,3.87654]
[1727040690878,1.62856335,2579.8,2579.6,3.87654]
[1727040691083,0.20302511,2579.7,2579.6,3.87654]
[1727040691787,1.62856335,2579.8,2579.6,3.87654]
[1727040692088,0.20302511,2579.7,2579.6,3.87654]
[1727040692264,1.62856335,2579.8,2579.6,3.87654]
[1727040692466,0.20302511,2579.7,2579.6,3.87654]
[1727040692700,1.62856335,2579.8,2579.6,3.87654]
[1727040692870,0.20302511,2579.7,2579.6,3.87654]
[1727040693065,1.62856335,2579.8,2579.6,3.87654]
[1727040693277,0.20302511,2579.7,2579.6,3.87654]
[1727040693471,0.20302511,2579.7,2579.5,3.8767]
[1727040693670,1.62856335,2579.8,2579.5,3.8767]
[1727040693874,0.20302511,2579.6,2579.5,3.8767]
[1727040694198,0.20302511,2579.6,2579.5,5.01237596]
[1727040694370,1.62856335,2579.8,2579.5,5.01237596]
[1727040694557,0.20302511,2579.7,2579.5,5.01237596]
[1727040694758,1.62856335,2579.8,2579.5,5.01237596]
[1727040694955,0.20302511,2579.7,2579.5,5.01237596]
[1727040695197,1.62856335,2579.8,2579.5,5.01237596]
[1727040695359,0.20302511,2579.6,2579.5,5.01237596]
[1727040695560,1.62856335,2579.8,2579.5,5.01237596]
[1727040695762,0.20302511,2579.7,2579.5,5.01237596]
[1727040696094,7.87225335,2579.8,2579.3,7.29361956]
[1727040696273,7.87225335,2579.8,2579.4,0.39018057]
[1727040696594,4.07946511,2579.7,2579.3,3.87691]
[1727040696799,4.07946511,2579.7,2579.4,0.39019673]
[1727040696968,4.07946511,2579.7,2579.1,2.2823]
[1727040697170,1.62856335,2579.5,2579.2,0.39025407]
[1727040697497,5.50528335,2579.5,2579.0,3.87737]
[1727040697695,5.50528335,2579.5,2579.1,0.39034768]
[1727040697873,0.20302511,2579.4,2579.0,3.87737]
[1727040698073,0.20302511,2579.4,2579.1,0.39033737]
[1727040698401,0.20302511,2579.4,2579.0,3.87737]
[1727040698700,0.20302511,2579.4,2579.1,0.39032261]
[1727040698876,2.3674,2579.3,2579.0,4.9994485]
[1727040699055,2.3674,2579.3,2579.1,0.3903226]
[1727040699260,2.3674,2579.3,2579.0,4.9994485]
[1727040699507,0.20302511,2579.2,2579.1,1.23681598]
[1727040699878,2.3674,2579.3,2579.1,1.23681598]
[1727040700075,0.20287407,2579.2,2579.1,0.84651935]
[1727040700569,2.3674,2579.3,2579.1,0.84651935]
[1727040700768,0.20287407,2579.2,2579.1,1.23679462]
[1727040700969,2.3674,2579.3,2579.1,1.23679736]
[1727040701309,0.20287407,2579.2,2579.1,0.84651935]
[1727040701493,0.20287407,2579.2,2579.1,1.23677675]
[1727040701823,0.20287407,2579.2,2579.1,1.23678111]
[1727040702100,2.3674,2579.3,2579.1,1.23677948]
[1727040702302,0.20287407,2579.2,2579.1,0.84651935]
[1727040702658,2.3674,2579.3,2579.1,0.84651935]
[1727040702862,0.20287407,2579.2,2579.1,0.84651935]
[1727040703098,2.3674,2579.3,2579.1,0.84651935]
[1727040703401,0.20287407,2579.2,2579.1,0.84651935]
[1727040703606,2.3674,2579.3,2579.1,1.23671162]
[1727040703786,2.3674,2579.3,2579.1,0.84651935]
[1727040703997,0.20287407,2579.2,2579.1,0.84651935]
[1727040704314,2.3674,2579.3,2579.1,0.84651935]
[1727040704464,0.20287407,2579.2,2579.1,0.84651935]
[1727040704869,2.3674,2579.3,2579.1,0.84651935]
[1727040705099,0.20287407,2579.2,2579.1,0.84651935]
[1727040705270,2.3674,2579.3,2579.1,0.84651935]
[1727040705470,0.20287407,2579.2,2579.1,0.84651935]
[1727040705671,2.3674,2579.3,2579.1,0.84651935]
[1727040705907,0.20287407,2579.2,2579.0,4.9994485]
[1727040706268,2.3674,2579.3,2579.0,4.9994485]
[1727040706471,0.20287407,2579.1,2579.0,4.9994485]
[1727040706977,2.3674,2579.3,2579.0,4.9994485]
[1727040707502,0.20287407,2579.2,2579.0,4.9994485]
[1727040707820,2.3674,2579.3,2579.0,4.9994485]
[1727040707996,0.20287407,2579.1,2579.0,4.9994485]
[1727040708192,0.20287407,2579.1,2579.0,1.5122487]
[1727040708403,0.20287407,2579.1,2579.0,0.3901702]
[1727040708576,0.20287407,2579.1,2578.7,7.39937004]
[1727040708909,0.20287407,2579.1,2578.8,0.39019272]
[1727040709203,0.20287407,2579.1,2578.8,3.87774]
[1727040709606,2.3315,2579.0,2578.7,0.037995]
[1727040709766,0.20266052,2578.9,2578.7,3.915885]
[1727040709972,0.20266052,2578.9,2578.7,1.165733]
[1727040713274,0.20266052,2578.9,2578.7,5.043633]
[1727040716017,0.20266052,2578.9,2578.7,6.22707804]
[1727040717399,0.20266052,2578.9,2578.8,3.87777]
[1727040717611,2.3542,2579.2,2578.9,3.87761]
[1727040717823,0.20255111,2579.1,2578.9,3.87761]
[1727040718114,0.20255111,2579.1,2578.9,5.1369198]
[1727040718546,0.20255111,2579.1,2579.0,3.87747]
[1727040718700,0.20255111,2579.1,2578.9,5.1368998]
[1727040719614,0.20255111,2579.1,2578.9,5.1368298]
[1727040719815,0.20255111,2579.1,2579.0,3.87747]
[1727040720055,2.3542,2579.4,2579.0,5.02773998]
[1727040720228,0.20247298,2579.1,2579.0,5.02773998]
[1727040720561,2.3542,2579.4,2579.0,5.02773998]
[1727040720731,0.20247298,2579.1,2579.0,5.02773998]
[1727040720933,2.3542,2579.4,2579.0,5.02773998]
[1727040721116,0.20247298,2579.1,2579.0,5.02773998]
[1727040721316,2.3542,2579.4,2579.0,5.02773998]
[1727040721517,0.20247298,2579.1,2579.0,5.02773998]
[1727040721717,2.3542,2579.4,2579.0,5.02773998]
[1727040721963,0.20247298,2579.1,2579.0,5.02773998]
[1727040722163,2.3542,2579.4,2579.0,5.02773998]
[1727040722319,0.20247298,2579.1,2579.0,5.02773998]
[1727040722519,2.3542,2579.4,2579.0,5.02773998]
[1727040722739,0.20247298,2579.1,2579.0,5.02773998]
[1727040722961,2.3542,2579.4,2579.0,5.02773998]
[1727040723131,0.20247298,2579.1,2579.0,5.02773998]
[1727040723452,5.90925595,2579.6,2579.2,3.87714]
[1727040723453,7.81532335,2579.6,2579.2,3.87714]
[1727040723957,11.69197335,2579.6,2579.1,6.2064]
[1727040724263,3.87673,2579.5,2579.1,3.8773]
[1727040730072,3.87673,2579.5,2578.9,7.39001504]
[1727040730254,5.50529335,2579.5,2579.1,3.87731]
[1727040730650,1.62856335,2579.5,2579.1,3.87731]
[1727040730850,6.18675,2579.6,2579.1,7.75455]
[1727040730851,7.81531335,2579.6,2579.1,7.75455]
[1727040731031,7.81531335,2579.6,2579.1,3.87724]
[1727040731256,11.69199335,2579.6,2579.1,3.87724]
[1727040731758,1.62856335,2579.5,2579.1,3.87724]
[1727040732165,11.69199335,2579.6,2579.1,3.87724]
[1727040732336,1.62856335,2579.5,2579.1,3.87724]
[1727040732659,2.3268,2579.4,2579.0,3.87745]
[1727040733030,2.3268,2579.4,2579.1,3.87732]
[1727040733231,0.20255113,2579.3,2579.1,3.87732]
[1727040735668,1.62856335,2579.5,2579.1,3.87732]
[1727040735883,0.20260843,2579.2,2579.1,3.87732]
[1727040736175,1.62856335,2579.5,2579.1,4.9599971]
[1727040736331,0.20260843,2579.2,2579.1,3.87732]
[1727040736867,1.62856335,2579.5,2579.1,3.87732]
[1727040737082,0.20260843,2579.2,2579.1,3.87732]
[1727040737277,1.62856335,2579.5,2579.1,3.87732]
[1727040737433,0.20260843,2579.2,2579.1,3.87732]
[1727040737767,1.62856335,2579.5,2579.1,4.9599971]
[1727040738069,5.50530335,2579.5,2579.1,3.87732]
[1727040738244,0.20260843,2579.4,2579.1,3.87732]
[1727040739368,0.20260843,2579.4,2579.1,3.82732]
[1727040739662,1.83117178,2579.4,2579.3,2.4994]
[1727040739863,0.20260843,2579.4,2579.3,2.4994]
[1727040740272,1.62856335,2579.6,2579.3,2.4994]
[1727040740440,0.20262926,2579.4,2579.3,2.4994]
[1727040740645,1.62856335,2579.6,2579.3,2.4994]
[1727040740842,0.20262926,2579.4,2579.3,2.4994]
[1727040741059,1.62856335,2579.6,2579.3,2.4994]
[1727040741261,0.20262926,2579.4,2579.3,2.4994]
[1727040741478,1.62856335,2579.6,2579.3,2.4994]
[1727040742149,0.20262926,2579.5,2579.3,2.4994]
[1727040742445,0.20262926,2579.5,2579.3,6.37639]
[1727040744856,1.62856335,2579.6,2579.3,6.37639]
[1727040745187,1.62856335,2579.7,2579.3,6.37639]
[1727040745480,0.20276471,2579.6,2579.3,6.37639]
[1727040752822,2.3064,2579.5,2579.2,3.87708]
[1727040752984,0.20278554,2579.4,2579.2,3.87708]
[1727040753179,0.20278554,2579.4,2579.0,3.87746]
[1727040753378,0.20278554,2579.4,2579.1,0.38962137]
[1727040753610,0.20278554,2579.4,2579.1,3.87731]
[1727040754512,0.20278554,2579.4,2579.0,3.87735]
[1727040754720,0.20278554,2579.4,2579.0,7.75473]
[1727040755013,0.20278554,2579.4,2579.0,7.75474]
[1727040755521,0.20278554,2579.4,2579.0,7.75471]
[1727040755677,2.3064,2579.3,2578.9,3.0]
[1727040755880,6.1835,2579.3,2578.9,3.87761]
[1727040756109,6.1835,2579.3,2578.8,3.87767]
[1727040756110,0.20006763,2579.2,2578.8,3.87767]
[1727040756531,7.81206335,2579.3,2578.8,3.87767]
[1727040756741,0.2000051,2579.1,2578.7,2.442595]
[1727040756944,3.8772,2579.2,2578.7,2.442595]
[1727040757149,0.2000051,2579.0,2578.7,2.442595]
[1727040757441,2.5942905,2578.9,2578.7,0.037995]
[1727040763345,6.4719805,2578.9,2578.7,0.037995]
[1727040763588,8.10054385,2578.9,2578.7,0.037995]
[1727040763766,3.87777,2578.8,2578.7,0.037995]
[1727040763973,5.07560139,2578.8,2578.7,0.037995]
[1727040764355,5.27549189,2578.8,2578.7,0.037995]
[1727040766357,7.67669189,2578.8,2578.7,0.037995]
[1727040780270,9.30525524,2578.8,2578.7,0.037995]
[1727040780472,10.89133818,2578.8,2578.7,0.037995]
[1727040780912,8.86013693,2578.8,2578.7,0.037995]
[1727040781140,10.89008747,2578.8,2578.7,0.037995]
[1727040781728,8.86013693,2578.8,2578.7,0.037995]
[1727040782074,10.48332931,2578.8,2578.7,0.037995]
[1727040782921,8.86013693,2578.8,2578.7,0.037995]
[1727040783431,14.03270149,2578.8,2578.7,0.037995]
[1727040783589,12.41013693,2578.8,2578.7,0.037995]
[1727040783789,14.03266447,2578.8,2578.7,0.037995]
[1727040784190,12.41013693,2578.8,2578.7,0.037995]
[1727040784415,14.03238763,2578.8,2578.7,0.037995]
[1727040787926,14.43788098,2578.8,2578.7,0.037995]
[1727040789924,14.4365863,2578.8,2578.7,0.037995]
[1727040791040,12.41013693,2578.8,2578.7,0.037995]
[1727040791595,14.74013693,2578.8,2578.7,0.037995]
[1727040791800,17.81571003,2578.8,2578.7,0.037995]
[1727040792040,20.65273915,2578.8,2578.7,0.037995]
[1727040792907,17.81571003,2578.8,2578.7,0.037995]
[1727040793112,20.65273915,2578.8,2578.7,0.037995]
[1727040794399,20.64969975,2578.8,2578.7,0.037995]
[1727040795414,17.81571003,2578.8,2578.7,0.037995]
[1727040796640,21.90271003,2578.8,2578.7,0.037995]
[1727040800047,21.57718002,2578.8,2578.7,0.037995]
[1727040802945,24.41036234,2578.8,2578.7,0.037995]
[1727040803142,21.57718002,2578.8,2578.7,0.037995]
[1727040807833,21.36829209,2578.8,2578.7,0.037995]
[1727040808447,24.20174159,2578.8,2578.7,0.037995]
[1727040808664,21.36829209,2578.8,2578.7,0.037995]
[1727040808837,24.20183784,2578.8,2578.7,0.037995]
[1727040809372,22.35977569,2578.8,2578.7,0.037995]
[1727040809982,6.17287,2578.0,2577.9,0.037995]
[1727040810148,12.52526228,2578.0,2577.9,0.037995]
[1727040810351,11.10442798,2578.0,2577.9,0.037995]
[1727040810549,13.12811203,2578.0,2577.9,0.037995]
[1727040810737,11.10442798,2578.0,2577.9,0.037995]
[1727040811077,12.30225937,2578.0,2577.9,0.037995]
[1727040811238,14.32594342,2578.0,2577.9,0.037995]
[1727040812502,14.75849848,2578.0,2577.9,0.037995]
[1727040813063,16.78218253,2578.0,2577.9,0.037995]
[1727040813300,14.75849848,2578.0,2577.9,0.037995]
[1727040813503,13.30422577,2578.0,2577.9,0.037995]
[1727040813796,12.46459848,2578.0,2577.9,0.037995]
[1727040813955,14.0829986,2578.0,2577.9,0.037995]
[1727040816973,12.46459848,2578.0,2577.9,0.037995]
[1727040817508,14.48767081,2578.0,2577.9,0.037995]
[1727040818010,12.46459848,2578.0,2577.9,0.037995]
[1727040818174,14.48761301,2578.0,2577.9,0.037995]
[1727040820716,12.0313739,2578.0,2577.9,0.037995]
[1727040822430,10.00835937,2578.0,2577.9,0.037995]
[1727040825386,12.43925116,2578.0,2577.9,0.037995]
[1727040825906,10.00835937,2578.0,2577.9,0.037995]
[1727040826280,12.43925116,2578.0,2577.9,0.037995]
[1727040826486,10.00835937,2578.0,2577.9,0.037995]
[1727040826896,12.43925116,2578.0,2577.9,0.037995]
[1727040827087,10.00835937,2578.0,2577.9,0.037995]
[1727040827413,12.43925116,2578.0,2577.9,0.037995]
[1727040827588,12.44195165,2578.0,2577.9,0.037995]
[1727040827789,12.47825937,2578.0,2577.9,0.037995]
[1727040828039,14.91177875,2578.0,2577.9,0.037995]
[1727040828207,14.91185325,2578.0,2577.9,0.037995]
[1727040828519,12.47825937,2578.0,2577.9,0.037995]
[1727040828737,14.91208809,2578.0,2577.9,0.037995]
[1727040828916,14.91203803,2578.0,2577.9,0.037995]
[1727040829316,12.47825937,2578.0,2577.9,0.037995]
[1727040832093,11.29481433,2578.0,2577.9,0.037995]
[1727040832314,12.47825937,2578.0,2577.9,0.037995]
[1727040833410,15.31955137,2578.0,2577.9,0.037995]
[1727040833631,12.47825937,2578.0,2577.9,0.037995]
[1727040833829,15.31955137,2578.0,2577.9,0.037995]
[1727040836192,17.64955137,2578.0,2577.9,0.037995]
[1727040836628,17.65222055,2578.0,2577.9,0.037995]
[1727040836835,14.80825937,2578.0,2577.9,0.037995]
[1727040843108,17.65300641,2578.0,2577.9,0.037995]
[1727040844448,14.80825937,2578.0,2577.9,0.037995]
[1727040845243,16.89559067,2578.0,2577.9,0.037995]
[1727040845444,20.25668373,2578.0,2577.9,0.037995]
[1727040845806,16.89559067,2578.0,2577.9,0.037995]
[1727040846246,20.25656073,2578.0,2577.9,0.037995]
[1727040846444,16.89559067,2578.0,2577.9,0.037995]
[1727040849746,25.01725422,2578.0,2577.9,0.037995]
[1727040850362,25.01494313,2578.0,2577.9,0.037995]
[1727040855062,25.01193551,2578.0,2577.9,0.037995]
[1727040858749,20.97958305,2578.0,2577.9,0.037995]
[1727040858944,25.01051698,2578.0,2577.9,0.037995]
[1727040862459,25.00951407,2578.0,2577.9,0.037995]
[1727040863782,24.93458375,2578.0,2577.9,0.037995]
[1727040871364,24.90465273,2578.0,2577.9,0.037995]
[1727040871993,6.20987,2577.4,2577.3,31.26097409]
[1727040872225,13.78722837,2577.4,2577.3,31.26097409]
[1727040872508,13.98419326,2577.4,2577.3,31.26097409]
[1727040872998,15.88876791,2577.4,2577.3,31.26097409]
[1727040873310,14.70532287,2577.4,2577.3,31.26097409]
[1727040873476,14.24268597,2577.4,2577.3,31.26097409]
[1727040880198,17.0861592,2577.4,2577.3,31.26097409]
[1727040880397,15.33832781,2577.4,2577.3,31.26097409]
[1727040881066,13.43375316,2577.4,2577.3,31.26097409]
[1727040881865,13.98375316,2577.4,2577.3,31.26097409]
[1727040883403,11.14027993,2577.4,2577.3,31.26097409]
[1727040883606,13.98453668,2577.4,2577.3,31.26097409]
[1727040884511,11.14027993,2577.4,2577.3,31.26097409]
[1727040884809,13.98490942,2577.4,2577.3,31.26097409]
[1727040884999,11.14027993,2577.4,2577.3,31.26097409]
[1727040892274,14.50234013,2577.4,2577.3,31.26097409]
[1727040892475,11.14027993,2577.4,2577.3,31.26097409]
[1727040893221,9.95683489,2577.4,2577.3,31.26097409]
[1727040893516,11.14027993,2577.4,2577.3,31.26097409]
[1727040894214,14.50391841,2577.4,2577.3,31.26097409]
[1727040896020,11.14027993,2577.4,2577.3,31.26097409]
[1727040897520,14.50410992,2577.4,2577.3,31.26097409]
[1727040897852,14.50412117,2577.4,2577.3,31.26097409]
[1727040898145,11.14027993,2577.4,2577.3,31.26097409]
[1727040898439,14.50411171,2577.4,2577.3,31.26097409]
[1727040898779,14.50415656,2577.4,2577.3,31.26097409]
[1727040900452,10.44080126,2577.4,2577.3,33.51457409]
[1727040900743,4.07683489,2577.4,2577.3,33.51457409]
[1727040901113,6.51824358,2577.4,2577.3,33.51457409]
[1727040901314,4.07683489,2577.4,2577.3,33.51457409]
[1727040901510,4.07683489,2577.4,2577.3,36.869831]
[1727040901852,9.51777443,2577.4,2577.3,36.869831]
[1727040902142,10.06768865,2577.4,2577.3,36.869831]
[1727040902924,10.06768865,2577.4,2577.3,33.51457409]
[1727040903137,7.62683489,2577.4,2577.3,33.51457409]
[1727040904451,10.0665161,2577.4,2577.3,33.51457409]
[1727040904650,7.62683489,2577.4,2577.3,33.51457409]
[1727040905756,10.06647804,2577.4,2577.3,33.51457409]
[1727040905957,7.62683489,2577.4,2577.3,33.51457409]
[1727040906462,10.06633739,2577.4,2577.3,33.51457409]
[1727040906750,12.39633739,2577.4,2577.3,33.51457409]
[1727040906962,7.62683489,2577.4,2577.3,33.51457409]
[1727040907121,10.06624219,2577.4,2577.3,36.869831]
[1727040909157,9.51624219,2577.4,2577.3,36.869831]
[1727040909361,7.07683489,2577.4,2577.3,36.869831]
[1727040919785,4.07683489,2577.4,2577.3,36.869831]
[1727040922469,4.07683489,2577.4,2577.3,33.51457409]
[1727040923475,6.5139009,2577.4,2577.3,33.51457409]
[1727040923641,4.07683489,2577.4,2577.3,33.51457409]
[1727040924473,6.5139009,2577.4,2577.3,33.51457409]
[1727040924743,4.07683489,2577.4,2577.3,33.51457409]
[1727040925198,6.51395307,2577.4,2577.3,33.51457409]
[1727040925375,4.07683489,2577.4,2577.3,33.51457409]
[1727040925581,6.51395307,2577.4,2577.3,33.51457409]
[1727040925985,4.07683489,2577.4,2577.3,33.51457409]
[1727040926496,6.51395307,2577.4,2577.3,33.51457409]
[1727040928832,4.07683489,2577.4,2577.3,33.51457409]
[1727040929983,6.51426807,2577.4,2577.3,33.51457409]
[1727040930698,7.06426807,2577.4,2577.3,33.51457409]
[1727040932281,7.13066848,2577.4,2577.3,33.51457409]
[1727040932481,4.6932353,2577.4,2577.3,33.51457409]
[1727040933025,9.53349987,2577.4,2577.3,31.26097409]
[1727040933199,12.53736669,2577.4,2577.3,31.26097409]
[1727040936814,14.86736669,2577.4,2577.3,31.26097409]
[1727040937023,17.71144721,2577.4,2577.3,31.26097409]
[1727040937385,14.86736669,2577.4,2577.3,31.26097409]
[1727040937698,14.86736669,2577.4,2577.3,30.71376035]
[1727040938860,14.86736669,2577.4,2577.3,30.11388221]
[1727040938980,19.03067247,2577.4,2577.3,24.04062489]
[1727040939877,19.41163878,2577.4,2577.3,24.04062489]
[1727040941512,19.41163878,2577.4,2577.3,18.1732242]
[1727040941715,19.47929238,2577.4,2577.3,18.1732242]
[1727040941894,19.97577223,2577.4,2577.3,17.74544898]
[1727040942091,19.97577223,2577.4,2577.3,15.47650748]
[1727040942092,23.14418588,2577.4,2577.3,15.47650748]
[1727040942432,23.5495095,2577.4,2577.3,15.47650748]
[1727040942925,23.28348376,2577.4,2577.3,15.47650748]
[1727040943246,23.68882103,2577.4,2577.3,15.05332172]
[1727040943532,24.12678954,2577.4,2577.3,15.05332172]
[1727040944203,26.12678954,2577.4,2577.3,11.52261167]
[1727040944380,26.12678954,2577.4,2577.3,10.56051167]
[1727040944579,26.12678954,2577.4,2577.3,4.69311098]
[1727040945016,10.30018,2577.2,2577.1,0.037995]
[1727040945180,22.11698049,2577.2,2577.1,0.037995]
[1727040945385,26.13347629,2577.2,2577.1,0.037995]
[1727040946121,26.13352363,2577.2,2577.1,0.037995]
[1727040946289,22.66698049,2577.2,2577.1,0.037995]
[1727040946632,26.68207604,2577.2,2577.1,0.037995]
[1727040947933,22.66698049,2577.2,2577.1,0.037995]
[1727040950536,18.66698049,2577.2,2577.1,0.037995]
[1727040951578,38.84360949,2577.2,2577.1,0.037995]
[1727040951786,38.44298949,2577.2,2577.1,0.037995]
[1727040952149,40.55166437,2577.2,2577.1,0.037995]
[1727040952353,40.95728889,2577.2,2577.1,0.037995]
[1727040955978,7.43138,2576.4,2576.3,0.037995]
[1727040956300,12.44531509,2576.4,2576.3,0.037995]
[1727040956505,12.7073738,2576.4,2576.3,0.037995]
[1727040957067,10.68825425,2576.4,2576.3,0.037995]
[1727040957268,12.7073738,2576.4,2576.3,0.037995]
[1727040958505,10.68825425,2576.4,2576.3,0.037995]
[1727040960366,12.30291831,2576.4,2576.3,0.037995]
[1727040960563,12.302918,2576.4,2576.3,0.037995]
[1727040960891,10.68825425,2576.4,2576.3,0.037995]
[1727040962896,13.01825425,2576.4,2576.3,0.037995]
[1727040963211,10.68825425,2576.4,2576.3,0.037995]
[1727040964301,12.70657078,2576.4,2576.3,0.037995]
[1727040965510,12.70636558,2576.4,2576.3,0.037995]
[1727040966701,12.70591595,2576.4,2576.3,0.037995]
[1727040969647,10.68804905,2576.4,2576.3,0.037995]
[1727040969789,12.70664972,2576.4,2576.3,0.037995]
[1727040970383,10.68804905,2576.4,2576.3,0.037995]
[1727040973690,10.62443976,2576.4,2576.3,0.037995]
[1727040975630,13.04708816,2576.4,2576.3,0.037995]
[1727040976222,13.04947323,2576.4,2576.3,0.037995]
[1727040977609,10.62443976,2576.4,2576.3,0.037995]
[1727040980697,13.45364547,2576.4,2576.3,0.037995]
[1727040981521,10.62443976,2576.4,2576.3,0.037995]
[1727040981695,10.59060251,2576.4,2576.3,0.037995]
[1727040983447,13.93260176,2576.4,2576.3,0.037995]
[1727040983799,18.02260176,2576.4,2576.3,0.037995]
[1727040984125,13.93260176,2576.4,2576.3,0.037995]
[1727040984508,10.59060251,2576.4,2576.3,0.037995]
[1727040987343,14.60569806,2576.4,2576.3,0.037995]
[1727040995862,16.94764313,2576.4,2576.3,0.037995]
[1727041005681,16.96876469,2576.4,2576.3,0.037995]
[1727041005856,12.93254758,2576.4,2576.3,0.037995]
[1727041007760,15.26654758,2576.4,2576.3,0.037995]
[1727041007942,19.76302743,2576.4,2576.3,0.037995]
[1727041008149,20.16868839,2576.4,2576.3,0.037995]
[1727041009377,20.24203897,2576.4,2576.3,0.037995]
[1727041010449,20.68000748,2576.4,2576.3,0.037995]
[1727041011781,21.08536205,2576.4,2576.3,0.037995]
[1727041011989,9.69993,2575.7,2575.6,0.037995]
[1727041012160,12.51127968,2575.7,2575.6,0.037995]
[1727041012478,10.50244923,2575.7,2575.6,0.037995]
[1727041012777,12.67759131,2575.7,2575.6,0.037995]
[1727041012942,10.50244923,2575.7,2575.6,0.037995]
[1727041013143,13.8609652,2575.7,2575.6,0.037995]
[1727041013387,12.83644923,2575.7,2575.6,0.037995]
[1727041013543,16.19380922,2575.7,2575.6,0.037995]
[1727041014283,12.83644923,2575.7,2575.6,0.037995]
[1727041014582,16.19376808,2575.7,2575.6,0.037995]
[1727041016453,12.83644923,2575.7,2575.6,0.037995]
[1727041020851,12.83524358,2575.7,2575.6,0.037995]
[1727041027122,16.83524358,2575.7,2575.6,0.037995]
[1727041029030,16.79035829,2575.7,2575.6,0.037995]
[1727041030194,16.79035829,2575.7,2574.8,0.037995]
[1727041030195,3.88349,2575.0,2574.8,0.037995]
[1727041030391,3.88409,2574.6,2574.5,2.4965]
[1727041030628,10.03264494,2574.6,2574.5,2.4965]
[1727041030931,6.88485,2574.1,2573.6,1.18344504]
[1727041031298,8.2719599,2574.1,2574.0,2.534495]
[1727041031500,8.52999375,2574.1,2574.0,2.534495]
[1727041033015,8.52999375,2574.1,2574.0,0.037995]
[1727041033234,11.10419743,2574.1,2574.0,0.037995]
[1727041033913,11.66079722,2574.1,2574.0,0.037995]
[1727041034505,11.25340425,2574.1,2574.0,0.037995]
[1727041034707,11.66079722,2574.1,2574.0,0.037995]
[1727041035495,11.25260448,2574.1,2574.0,0.037995]
[1727041035695,11.25258682,2574.1,2574.0,0.037995]
[1727041036618,9.63659354,2574.1,2574.0,0.037995]
[1727041039306,9.07999375,2574.1,2574.0,0.037995]
[1727041039647,9.07089794,2574.1,2574.0,0.037995]
[1727041039798,10.18129194,2574.1,2574.0,0.037995]
[1727041041532,9.6260989,2574.1,2574.0,0.037995]
[1727041043127,10.18118358,2574.1,2574.0,0.037995]
[1727041043321,9.62598262,2574.1,2574.0,0.037995]
[1727041044202,9.07089794,2574.1,2574.0,0.037995]
[1727041044435,10.25434298,2574.1,2574.0,0.037995]
[1727041044620,10.80960065,2574.1,2574.0,0.037995]
[1727041045431,10.25434298,2574.1,2574.0,0.037995]
[1727041045629,10.80946711,2574.1,2574.0,0.037995]
[1727041046712,10.80945679,2574.1,2574.0,0.037995]
[1727041047651,10.75761637,2574.1,2574.0,0.037995]
[1727041049233,10.75760978,2574.1,2574.0,0.037995]
[1727041051123,10.20252541,2574.1,2574.0,0.037995]
[1727041051557,10.75773965,2574.1,2574.0,0.037995]
[1727041051912,9.57429461,2574.1,2574.0,0.037995]
[1727041052264,9.57429461,2574.1,2574.0,2.434595]
[1727041055566,9.51264918,2574.1,2574.0,2.434595]
[1727041058134,9.51337686,2574.1,2574.0,2.434595]
[1727041061783,8.95743494,2574.1,2574.0,2.434595]
[1727041061986,9.51356649,2574.1,2574.0,2.434595]
[1727041062482,11.12955977,2574.1,2574.0,2.434595]
[1727041062982,9.51356649,2574.1,2574.0,2.434595]
[1727041063184,11.12955977,2574.1,2574.0,2.434595]
[1727041063652,11.12248981,2574.1,2574.0,2.434595]
[1727041065091,10.56635826,2574.1,2574.0,2.434595]
[1727041065586,11.12547337,2574.1,2574.0,2.434595]
[1727041065754,11.12551607,2574.1,2574.0,2.434595]
[1727041065957,9.50693081,2574.1,2574.0,2.434595]
[1727041066288,11.12549818,2574.1,2574.0,2.434595]
[1727041066472,11.52915756,2574.1,2574.0,2.434595]
[1727041068574,10.97259173,2574.1,2574.0,2.434595]
[1727041068968,11.53202874,2574.1,2574.0,2.434595]
[1727041069487,9.50741339,2574.1,2574.0,2.434595]
[1727041071651,9.48978807,2574.1,2574.0,2.434595]
[1727041071860,9.48978807,2574.1,2574.0,0.037995]
[1727041072170,10.04808393,2574.1,2574.0,0.037995]
[1727041072352,11.92005269,2574.1,2574.0,0.037995]
[1727041072553,11.92007635,2574.1,2574.0,0.037995]
[1727041073453,9.49053793,2574.1,2574.0,0.037995]
[1727041074059,10.67398297,2574.1,2574.0,0.037995]
[1727041074461,12.9994494,2574.1,2574.0,0.037995]
[1727041074764,15.8393708,2574.1,2574.0,0.037995]